[Event "Early-Titled-Tuesday-Blitz-November-28-2023"]
[Site "Chess.com"]
[Date "2023.11.28"]
[Round "4"]
[White "Sokoloco"]
[Black "Kaua18"]
[Result "0-1"]
[WhiteElo "2753"]
[BlackElo "2556"]
[TimeControl "180+1"]
[EndTime "8:40:23 PST"]
[Termination "Kaua18 won on time"]

1. b3 {[%clk 0:03:00.9]} 1... d5 {[%clk 0:02:57.8]} 2. Bb2 {[%clk 0:03:01.8]}
2... Nf6 {[%clk 0:02:56.8]} 3. e3 {[%clk 0:03:02]} 3... g6 {[%clk 0:02:56.8]} 4.
Bxf6 {[%clk 0:02:58.8]} 4... exf6 {[%clk 0:02:57.7]} 5. d4 {[%clk 0:02:59.6]}
5... c6 {[%clk 0:02:57.3]} 6. c3 {[%clk 0:02:58.7]} 6... Bd6 {[%clk 0:02:57.8]}
7. g3 {[%clk 0:02:58.5]} 7... Nd7 {[%clk 0:02:57.5]} 8. h4 {[%clk 0:02:51.1]}
8... h5 {[%clk 0:02:52.4]} 9. Nf3 {[%clk 0:02:49]} 9... f5 {[%clk 0:02:43.9]}
10. Nbd2 {[%clk 0:02:48.6]} 10... Nf6 {[%clk 0:02:44.1]} 11. Ng5 {[%clk
0:02:49.1]} 11... Ne4 {[%clk 0:02:40.5]} 12. Ndxe4 {[%clk 0:02:49.1]} 12... fxe4
{[%clk 0:02:39.9]} 13. Bh3 {[%clk 0:02:49.7]} 13... Bxh3 {[%clk 0:02:36.4]} 14.
Nxh3 {[%clk 0:02:48.2]} 14... a5 {[%clk 0:02:32.2]} 15. Qd2 {[%clk 0:02:33.4]}
15... a4 {[%clk 0:02:26.8]} 16. b4 {[%clk 0:02:30.4]} 16... a3 {[%clk
0:02:27.1]} 17. O-O {[%clk 0:02:22.9]} 17... O-O {[%clk 0:02:25.8]} 18. Kg2
{[%clk 0:02:20.6]} 18... Kg7 {[%clk 0:02:23.3]} 19. Rab1 {[%clk 0:02:20]} 19...
b5 {[%clk 0:02:22.8]} 20. Rb3 {[%clk 0:02:18.5]} 20... Ra4 {[%clk 0:02:22.8]}
21. Qc1 {[%clk 0:02:14.7]} 21... Qa8 {[%clk 0:02:19.9]} 22. f3 {[%clk
0:02:14.7]} 22... Re8 {[%clk 0:02:18.6]} 23. fxe4 {[%clk 0:02:11.9]} 23... Rxe4
{[%clk 0:02:16.2]} 24. Ng5 {[%clk 0:02:11.7]} 24... Re7 {[%clk 0:02:16.6]} 25.
Rf3 {[%clk 0:01:45.6]} 25... f6 {[%clk 0:02:10.9]} 26. Nh3 {[%clk 0:01:45.9]}
26... Qe8 {[%clk 0:01:57.7]} 27. Kf2 {[%clk 0:01:19.2]} 27... Qd7 {[%clk
0:01:55.1]} 28. Ng1 {[%clk 0:01:16.9]} 28... Qa7 {[%clk 0:01:19.5]} 29. Nh3
{[%clk 0:01:16.6]} 29... Qd7 {[%clk 0:01:18.3]} 30. Kg2 {[%clk 0:01:16.8]} 30...
Qa7 {[%clk 0:00:44.3]} 31. Nf2 {[%clk 0:01:17.1]} 31... Re6 {[%clk 0:00:37.8]}
32. Nd3 {[%clk 0:01:16.4]} 32... Re4 {[%clk 0:00:37]} 33. Kf2 {[%clk 0:01:10.1]}
33... Ra6 {[%clk 0:00:34.9]} 34. Kg2 {[%clk 0:01:08]} 34... Qe7 {[%clk
0:00:32.5]} 35. Nf2 {[%clk 0:01:00.5]} 35... Re6 {[%clk 0:00:29.4]} 36. Nd1
{[%clk 0:01:01]} 36... Qa7 {[%clk 0:00:27.5]} 37. Nf2 {[%clk 0:01:00.5]} 37...
Qe7 {[%clk 0:00:26.8]} 38. Qd2 {[%clk 0:01:00.6]} 38... Ra7 {[%clk 0:00:18.1]}
39. Qe1 {[%clk 0:01:00.5]} 39... g5 {[%clk 0:00:11]} 40. hxg5 {[%clk 0:00:54.7]}
40... fxg5 {[%clk 0:00:11.9]} 41. g4 {[%clk 0:00:50.5]} 41... h4 {[%clk
0:00:12.3]} 42. Qe2 {[%clk 0:00:40.1]} 42... Rf6 {[%clk 0:00:11.2]} 43. Rb1
{[%clk 0:00:35.3]} 43... Rxf3 {[%clk 0:00:11.3]} 44. Qxf3 {[%clk 0:00:36.2]}
44... Qe6 {[%clk 0:00:11.9]} 45. Nh3 {[%clk 0:00:35]} 45... Kg6 {[%clk
0:00:04.5]} 46. Rf1 {[%clk 0:00:34.8]} 46... Re7 {[%clk 0:00:04.8]} 47. Qf5+
{[%clk 0:00:11.6]} 47... Qxf5 {[%clk 0:00:05]} 48. Rxf5 {[%clk 0:00:09.9]} 48...
Rxe3 {[%clk 0:00:05.6]} 49. Rxg5+ {[%clk 0:00:10.3]} 49... Kf6 {[%clk
0:00:06.2]} 50. Rf5+ {[%clk 0:00:10.3]} 50... Kg6 {[%clk 0:00:05.2]} 51. Rf3
{[%clk 0:00:06.3]} 51... Re4 {[%clk 0:00:03.4]} 52. Nf2 {[%clk 0:00:05]} 52...
Re2 {[%clk 0:00:03.2]} 53. Kh3 {[%clk 0:00:05.2]} 53... Rxa2 {[%clk 0:00:03.6]}
54. Kxh4 {[%clk 0:00:05.4]} 54... Rc2 {[%clk 0:00:04.3]} 55. Nh3 {[%clk
0:00:02.8]} 55... a2 {[%clk 0:00:04.4]} 56. Rf1 {[%clk 0:00:03.4]} 56... Rb2
{[%clk 0:00:04.3]} 57. Ra1 {[%clk 0:00:02.8]} 57... Rg2 {[%clk 0:00:04.9]} 0-1

[Event "Early-Titled-Tuesday-Blitz-November-28-2023"]
[Site "Chess.com"]
[Date "2023.11.28"]
[Round "4"]
[White "zverr1"]
[Black "Massakru"]
[Result "0-1"]
[WhiteElo "2529"]
[BlackElo "2367"]
[TimeControl "180+1"]
[EndTime "8:40:25 PST"]
[Termination "Massakru won by checkmate"]

1. e4 {[%clk 0:03:00.9]} 1... e5 {[%clk 0:02:59.5]} 2. Nf3 {[%clk 0:03:00.7]}
2... Nc6 {[%clk 0:02:56.7]} 3. Bc4 {[%clk 0:03:00.8]} 3... Nf6 {[%clk 0:02:56]}
4. Ng5 {[%clk 0:03:00.6]} 4... d5 {[%clk 0:02:53.9]} 5. exd5 {[%clk 0:03:01.5]}
5... Na5 {[%clk 0:02:54.4]} 6. Bb5+ {[%clk 0:03:02]} 6... c6 {[%clk 0:02:54.8]}
7. dxc6 {[%clk 0:03:02.9]} 7... bxc6 {[%clk 0:02:55.4]} 8. Be2 {[%clk
0:03:03.6]} 8... h6 {[%clk 0:02:46.6]} 9. Nh3 {[%clk 0:03:03.8]} 9... Bc5 {[%clk
0:02:43.2]} 10. d3 {[%clk 0:02:59.6]} 10... Nd5 {[%clk 0:02:25.5]} 11. Nc3
{[%clk 0:02:52.9]} 11... Bxh3 {[%clk 0:02:14]} 12. gxh3 {[%clk 0:02:51]} 12...
Nf4 {[%clk 0:02:06.6]} 13. Bxf4 {[%clk 0:02:45.1]} 13... exf4 {[%clk 0:02:06.7]}
14. Ne4 {[%clk 0:02:34.9]} 14... Bd4 {[%clk 0:02:00]} 15. c3 {[%clk 0:02:32]}
15... Bb6 {[%clk 0:01:58.7]} 16. Qd2 {[%clk 0:02:13.7]} 16... Qc7 {[%clk
0:01:49.2]} 17. Qc2 {[%clk 0:01:30.6]} 17... O-O-O {[%clk 0:01:45.9]} 18. O-O-O
{[%clk 0:01:29.1]} 18... f5 {[%clk 0:01:43.4]} 19. Nd2 {[%clk 0:01:11]} 19...
Bxf2 {[%clk 0:01:42.1]} 20. Rhf1 {[%clk 0:00:55.6]} 20... Be3 {[%clk 0:01:41.7]}
21. Kb1 {[%clk 0:00:56.1]} 21... Bxd2 {[%clk 0:01:35.6]} 22. Rxd2 {[%clk
0:00:47.6]} 22... Rhe8 {[%clk 0:01:25.8]} 23. d4 {[%clk 0:00:45.7]} 23... g6
{[%clk 0:01:21.4]} 24. Rg1 {[%clk 0:00:41.5]} 24... Re6 {[%clk 0:01:18.9]} 25.
Ba6+ {[%clk 0:00:40.1]} 25... Kb8 {[%clk 0:01:15.8]} 26. Rdg2 {[%clk 0:00:34.1]}
26... Rde8 {[%clk 0:01:05]} 27. b3 {[%clk 0:00:24.2]} 27... Qf7 {[%clk
0:00:33.4]} 28. Qf2 {[%clk 0:00:16.8]} 28... g5 {[%clk 0:00:30.1]} 29. b4 {[%clk
0:00:12.9]} 29... c5 {[%clk 0:00:27.3]} 30. Bb5 {[%clk 0:00:09.7]} 30... cxb4
{[%clk 0:00:19]} 31. Bxe8 {[%clk 0:00:09.7]} 31... Qxe8 {[%clk 0:00:18.7]} 32.
cxb4 {[%clk 0:00:07.7]} 32... Nc4 {[%clk 0:00:18.5]} 33. Ka1 {[%clk 0:00:03.6]}
33... Qa4 {[%clk 0:00:13.6]} 34. Qc2 {[%clk 0:00:03.5]} 34... Qb5 {[%clk
0:00:07.5]} 35. Qb3 {[%clk 0:00:03.9]} 35... Re3 {[%clk 0:00:06.8]} 36. Qb1
{[%clk 0:00:02.3]} 36... Qd5 {[%clk 0:00:06]} 37. Rb2 {[%clk 0:00:01.2]} 37...
Qxd4 {[%clk 0:00:05.8]} 38. Rc1 {[%clk 0:00:01.4]} 38... Nxb2 {[%clk 0:00:05.6]}
39. Qxb2 {[%clk 0:00:02.3]} 39... Qxb2+ {[%clk 0:00:05.6]} 40. Kxb2 {[%clk
0:00:03.2]} 40... Re2+ {[%clk 0:00:06.5]} 41. Kc3 {[%clk 0:00:02.2]} 41... Rxa2
{[%clk 0:00:06.3]} 42. Re1 {[%clk 0:00:02.6]} 42... Ra3+ {[%clk 0:00:05.4]} 43.
Kc4 {[%clk 0:00:02.7]} 43... Rxh3 {[%clk 0:00:06.1]} 44. Re8+ {[%clk 0:00:03.1]}
44... Kc7 {[%clk 0:00:06.4]} 45. Rf8 {[%clk 0:00:04]} 45... Rxh2 {[%clk
0:00:05.5]} 46. Rxf5 {[%clk 0:00:04.1]} 46... Re2 {[%clk 0:00:04.6]} 47. Kc5
{[%clk 0:00:04]} 47... Re7 {[%clk 0:00:04.1]} 48. Rf6 {[%clk 0:00:03.2]} 48...
Rg7 {[%clk 0:00:03.8]} 49. b5 {[%clk 0:00:01.8]} 49... g4 {[%clk 0:00:03.6]} 50.
Ra6 {[%clk 0:00:01.3]} 50... Kb7 {[%clk 0:00:02.7]} 51. Rxh6 {[%clk 0:00:02]}
51... g3 {[%clk 0:00:03]} 52. b6 {[%clk 0:00:02.1]} 52... axb6+ {[%clk
0:00:02.6]} 53. Rxb6+ {[%clk 0:00:03]} 53... Kc7 {[%clk 0:00:03.1]} 54. Ra6
{[%clk 0:00:02.7]} 54... Kb7 {[%clk 0:00:01.6]} 55. Rb6+ {[%clk 0:00:03.4]}
55... Kc8 {[%clk 0:00:01.9]} 56. Ra6 {[%clk 0:00:02.2]} 56... g2 {[%clk
0:00:02.2]} 57. Ra8+ {[%clk 0:00:02.3]} 57... Kb7 {[%clk 0:00:02.6]} 58. Rd8
{[%clk 0:00:02.1]} 58... g1=Q+ {[%clk 0:00:02.8]} 59. Kd6 {[%clk 0:00:01.7]}
59... Qb6+ {[%clk 0:00:03.2]} 60. Ke5 {[%clk 0:00:01.5]} 60... Qxd8 {[%clk
0:00:03.3]} 61. Kf5 {[%clk 0:00:02.3]} 61... Rf7+ {[%clk 0:00:03.7]} 62. Ke4
{[%clk 0:00:03.2]} 62... Qe7+ {[%clk 0:00:03.8]} 63. Kf3 {[%clk 0:00:04.1]}
63... Qe3+ {[%clk 0:00:03.8]} 64. Kg4 {[%clk 0:00:05]} 64... Qg3+ {[%clk
0:00:04.1]} 65. Kh5 {[%clk 0:00:05.9]} 65... Rh7# {[%clk 0:00:04.4]} 0-1

[Event "Early-Titled-Tuesday-Blitz-November-28-2023"]
[Site "Chess.com"]
[Date "2023.11.28"]
[Round "4"]
[White "LizardMorrison"]
[Black "andrzej"]
[Result "1-0"]
[WhiteElo "2201"]
[BlackElo "2456"]
[TimeControl "180+1"]
[EndTime "8:40:34 PST"]
[Termination "LizardMorrison won by resignation"]

1. e4 {[%clk 0:02:49.8]} 1... e5 {[%clk 0:03:00.3]} 2. Nf3 {[%clk 0:02:48.4]}
2... Nf6 {[%clk 0:03:00.8]} 3. Nxe5 {[%clk 0:02:45.1]} 3... d6 {[%clk
0:03:01.4]} 4. Nf3 {[%clk 0:02:43.7]} 4... Nxe4 {[%clk 0:03:01.9]} 5. d3 {[%clk
0:02:44]} 5... Nf6 {[%clk 0:03:01.9]} 6. d4 {[%clk 0:02:44.4]} 6... g6 {[%clk
0:03:02.1]} 7. c3 {[%clk 0:02:42.3]} 7... Bg7 {[%clk 0:03:01.7]} 8. Bd3 {[%clk
0:02:42.9]} 8... O-O {[%clk 0:03:01.6]} 9. O-O {[%clk 0:02:43.6]} 9... Nc6
{[%clk 0:02:57.7]} 10. h3 {[%clk 0:02:42.7]} 10... Ne7 {[%clk 0:02:57.4]} 11.
Re1 {[%clk 0:02:41.5]} 11... Bf5 {[%clk 0:02:57.2]} 12. Bf4 {[%clk 0:02:36.4]}
12... Nfd5 {[%clk 0:02:50.7]} 13. Bg5 {[%clk 0:02:29.1]} 13... Bxd3 {[%clk
0:02:47.2]} 14. Qxd3 {[%clk 0:02:30]} 14... h6 {[%clk 0:02:47.4]} 15. Bxe7
{[%clk 0:02:22.1]} 15... Nxe7 {[%clk 0:02:47]} 16. Nbd2 {[%clk 0:02:22.8]} 16...
Qd7 {[%clk 0:02:32.8]} 17. Re2 {[%clk 0:02:19]} 17... Rfe8 {[%clk 0:02:30.2]}
18. Rae1 {[%clk 0:02:18.5]} 18... Nd5 {[%clk 0:02:30.1]} 19. Rxe8+ {[%clk
0:01:32]} 19... Rxe8 {[%clk 0:02:31]} 20. Rxe8+ {[%clk 0:01:32.5]} 20... Qxe8
{[%clk 0:02:31.6]} 21. Qe4 {[%clk 0:01:33.2]} 21... Qxe4 {[%clk 0:02:28]} 22.
Nxe4 {[%clk 0:01:34.1]} 22... f5 {[%clk 0:02:28.4]} 23. Ned2 {[%clk 0:01:31.8]}
23... Kf7 {[%clk 0:02:17.8]} 24. Kf1 {[%clk 0:01:25.9]} 24... Ke6 {[%clk
0:02:17.6]} 25. g3 {[%clk 0:01:26.1]} 25... b5 {[%clk 0:02:15.9]} 26. Ke2 {[%clk
0:01:25.5]} 26... Nb6 {[%clk 0:02:13.7]} 27. Kd3 {[%clk 0:01:23.7]} 27... Bf6
{[%clk 0:01:55.2]} 28. b3 {[%clk 0:01:10.3]} 28... d5 {[%clk 0:01:46.1]} 29. Ng1
{[%clk 0:00:40.6]} 29... Nc8 {[%clk 0:01:37.4]} 30. Ne2 {[%clk 0:00:38.7]} 30...
g5 {[%clk 0:01:37.9]} 31. g4 {[%clk 0:00:36.6]} 31... Nd6 {[%clk 0:01:33]} 32.
Ng3 {[%clk 0:00:31]} 32... Bg7 {[%clk 0:01:14.7]} 33. Nh5 {[%clk 0:00:28.1]}
33... Bf8 {[%clk 0:01:13.3]} 34. Ng3 {[%clk 0:00:23.9]} 34... c6 {[%clk
0:01:01.5]} 35. f3 {[%clk 0:00:22.5]} 35... a6 {[%clk 0:01:00.6]} 36. a4 {[%clk
0:00:17.8]} 36... bxa4 {[%clk 0:00:50.4]} 37. bxa4 {[%clk 0:00:18.7]} 37... Be7
{[%clk 0:00:50.9]} 38. c4 {[%clk 0:00:18]} 38... fxg4 {[%clk 0:00:31.8]} 39.
hxg4 {[%clk 0:00:16.5]} 39... Bf6 {[%clk 0:00:22.4]} 40. c5 {[%clk 0:00:15.1]}
40... Nb7 {[%clk 0:00:18.2]} 41. Nf5 {[%clk 0:00:15.4]} 41... Na5 {[%clk
0:00:05.8]} 42. Nxh6 {[%clk 0:00:14.6]} 42... Nb7 {[%clk 0:00:06.7]} 43. Nb3
{[%clk 0:00:13.9]} 43... Nd8 {[%clk 0:00:06.7]} 44. Nf5 {[%clk 0:00:13.7]} 44...
Nf7 {[%clk 0:00:07]} 45. Na5 {[%clk 0:00:13.5]} 45... Kd7 {[%clk 0:00:07.4]} 46.
Ke3 {[%clk 0:00:09.3]} 46... Bd8 {[%clk 0:00:07.7]} 47. Nb3 {[%clk 0:00:09.3]}
47... Nh8 {[%clk 0:00:08]} 48. f4 {[%clk 0:00:08]} 48... Ng6 {[%clk 0:00:07.3]}
49. fxg5 {[%clk 0:00:07.7]} 49... Bxg5+ {[%clk 0:00:08.2]} 50. Kf3 {[%clk
0:00:08.6]} 50... Bf6 {[%clk 0:00:07.6]} 51. Nc1 {[%clk 0:00:06.7]} 51... Ke6
{[%clk 0:00:05.9]} 52. Nd3 {[%clk 0:00:07.1]} 52... Bd8 {[%clk 0:00:04.7]} 53.
Nf4+ {[%clk 0:00:07.2]} 53... Nxf4 {[%clk 0:00:04.1]} 54. Kxf4 {[%clk
0:00:08.1]} 54... Bf6 {[%clk 0:00:04]} 55. g5 {[%clk 0:00:07.2]} 55... Bh8
{[%clk 0:00:04.6]} 56. g6 {[%clk 0:00:05.8]} 56... Kf6 {[%clk 0:00:04.3]} 57. g7
{[%clk 0:00:04.9]} 57... Bxg7 {[%clk 0:00:04.1]} 58. Nxg7 {[%clk 0:00:05.7]}
58... Kxg7 {[%clk 0:00:05]} 59. Ke5 {[%clk 0:00:06.5]} 59... Kg6 {[%clk
0:00:04.9]} 60. Kd6 {[%clk 0:00:07.2]} 60... Kf5 {[%clk 0:00:05.8]} 61. Kxc6
{[%clk 0:00:07.2]} 61... Ke4 {[%clk 0:00:06.7]} 62. Kb6 {[%clk 0:00:06.7]} 62...
Kxd4 {[%clk 0:00:07.2]} 63. c6 {[%clk 0:00:07.6]} 63... Ke3 {[%clk 0:00:07.4]}
64. c7 {[%clk 0:00:08.5]} 64... d4 {[%clk 0:00:08.3]} 65. c8=Q {[%clk
0:00:08.9]} 65... d3 {[%clk 0:00:09.2]} 66. Qc1+ {[%clk 0:00:08.5]} 66... d2
{[%clk 0:00:09.5]} 67. Qd1 {[%clk 0:00:09]} 67... Kd3 {[%clk 0:00:09.8]} 68.
Kxa6 {[%clk 0:00:09.1]} 68... Kc3 {[%clk 0:00:10]} 69. Kb6 {[%clk 0:00:09.5]}
69... Kb2 {[%clk 0:00:09.5]} 70. a5 {[%clk 0:00:09.6]} 70... Ka3 {[%clk
0:00:10.4]} 71. a6 {[%clk 0:00:09.8]} 1-0

[Event "Early-Titled-Tuesday-Blitz-November-28-2023"]
[Site "Chess.com"]
[Date "2023.11.28"]
[Round "4"]
[White "MatyChess1"]
[Black "pasteta13"]
[Result "1-0"]
[WhiteElo "2670"]
[BlackElo "2454"]
[TimeControl "180+1"]
[EndTime "8:40:41 PST"]
[Termination "MatyChess1 won on time"]

1. d4 {[%clk 0:03:00.9]} 1... Nf6 {[%clk 0:02:59.9]} 2. Bf4 {[%clk 0:03:00.4]}
2... d6 {[%clk 0:03:00.8]} 3. Nf3 {[%clk 0:03:00.1]} 3... Nbd7 {[%clk
0:03:01.5]} 4. e3 {[%clk 0:02:58.1]} 4... g6 {[%clk 0:03:02.1]} 5. h3 {[%clk
0:02:57.9]} 5... Bg7 {[%clk 0:03:03]} 6. Be2 {[%clk 0:02:58.3]} 6... O-O {[%clk
0:03:03.8]} 7. O-O {[%clk 0:02:59]} 7... Re8 {[%clk 0:02:54.5]} 8. Bh2 {[%clk
0:02:58.6]} 8... c6 {[%clk 0:02:53.4]} 9. a4 {[%clk 0:02:57.9]} 9... a5 {[%clk
0:02:51.9]} 10. Na3 {[%clk 0:02:56.6]} 10... Qc7 {[%clk 0:02:44.5]} 11. Nc4
{[%clk 0:02:56.7]} 11... b5 {[%clk 0:02:39.7]} 12. axb5 {[%clk 0:02:37.5]} 12...
cxb5 {[%clk 0:02:40.6]} 13. Na3 {[%clk 0:02:38.2]} 13... b4 {[%clk 0:02:39.8]}
14. Nc4 {[%clk 0:02:38.9]} 14... Ba6 {[%clk 0:02:03.6]} 15. Rxa5 {[%clk
0:02:25.7]} 15... Bxc4 {[%clk 0:02:01.1]} 16. Rxa8 {[%clk 0:02:26.6]} 16... Rxa8
{[%clk 0:02:00.9]} 17. Re1 {[%clk 0:02:17.2]} 17... Ne4 {[%clk 0:01:31]} 18. Bd3
{[%clk 0:02:15.3]} 18... Ndf6 {[%clk 0:01:20.6]} 19. Qe2 {[%clk 0:02:15.5]}
19... Rc8 {[%clk 0:01:09]} 20. Ra1 {[%clk 0:02:13.1]} 20... Nd5 {[%clk
0:01:05.3]} 21. Qe1 {[%clk 0:02:08.7]} 21... f5 {[%clk 0:00:57.8]} 22. Bxe4
{[%clk 0:02:04.3]} 22... fxe4 {[%clk 0:00:58.7]} 23. Ng5 {[%clk 0:02:05]} 23...
Nf6 {[%clk 0:00:55.5]} 24. h4 {[%clk 0:01:46.8]} 24... h6 {[%clk 0:00:55.7]} 25.
Nh3 {[%clk 0:01:47.2]} 25... Bf7 {[%clk 0:00:56.1]} 26. Rc1 {[%clk 0:01:42]}
26... Qc4 {[%clk 0:00:50.1]} 27. Nf4 {[%clk 0:01:34.7]} 27... Ra8 {[%clk
0:00:39.5]} 28. Bg3 {[%clk 0:01:04.5]} 28... Ra2 {[%clk 0:00:39]} 29. b3 {[%clk
0:01:05]} 29... Qc3 {[%clk 0:00:32.1]} 30. f3 {[%clk 0:01:05.5]} 30... Rxc2
{[%clk 0:00:23]} 31. Ra1 {[%clk 0:01:00.5]} 31... exf3 {[%clk 0:00:15.7]} 32.
gxf3 {[%clk 0:00:59.8]} 32... Nd5 {[%clk 0:00:09.3]} 33. Ng2 {[%clk 0:00:40.7]}
33... Qxe1+ {[%clk 0:00:05.9]} 34. Bxe1 {[%clk 0:00:36.6]} 34... Nc3 {[%clk
0:00:06.1]} 35. Ra8+ {[%clk 0:00:32.9]} 35... Kh7 {[%clk 0:00:05.5]} 36. Ra7
{[%clk 0:00:28.2]} 36... Bf6 {[%clk 0:00:05]} 37. Rb7 {[%clk 0:00:28.8]} 37...
Bxb3 {[%clk 0:00:04.8]} 38. Rxb4 {[%clk 0:00:29]} 38... Bf7 {[%clk 0:00:03.1]}
39. Kf1 {[%clk 0:00:25.7]} 39... Nd5 {[%clk 0:00:02.8]} 40. Rb7 {[%clk
0:00:20.9]} 40... Kg7 {[%clk 0:00:02.1]} 41. e4 {[%clk 0:00:18.5]} 41... Nc7
{[%clk 0:00:01.9]} 42. Ne3 {[%clk 0:00:17.9]} 42... Na6 {[%clk 0:00:01.9]} 43.
Nxc2 {[%clk 0:00:16.9]} 43... Bc4+ {[%clk 0:00:02.3]} 44. Kg2 {[%clk 0:00:16.5]}
44... Bd3 {[%clk 0:00:02.8]} 45. Nb4 {[%clk 0:00:15.8]} 45... Nxb4 {[%clk
0:00:03.3]} 46. Rxb4 {[%clk 0:00:16.4]} 46... g5 {[%clk 0:00:01.8]} 47. hxg5
{[%clk 0:00:16.2]} 47... Bxg5 {[%clk 0:00:02.1]} 48. Bf2 {[%clk 0:00:16]} 48...
Be2 {[%clk 0:00:01.8]} 49. Bg3 {[%clk 0:00:14.9]} 49... Bd3 {[%clk 0:00:01.1]}
50. Bf2 {[%clk 0:00:13.8]} 50... Kf7 {[%clk 0:00:01.2]} 51. Rb7 {[%clk
0:00:13.7]} 51... Bc2 {[%clk 0:00:01.6]} 52. Kh3 {[%clk 0:00:11.7]} 52... Ba4
{[%clk 0:00:02.2]} 53. Bh4 {[%clk 0:00:10.7]} 53... Bxh4 {[%clk 0:00:01.9]} 54.
Kxh4 {[%clk 0:00:11.1]} 54... Bc6 {[%clk 0:00:02.4]} 55. Rc7 {[%clk 0:00:11.3]}
55... Ba4 {[%clk 0:00:02.7]} 56. Kg3 {[%clk 0:00:10.7]} 56... Bd1 {[%clk
0:00:03.6]} 57. d5 {[%clk 0:00:10.7]} 57... Be2 {[%clk 0:00:03.3]} 58. Rc1
{[%clk 0:00:11.3]} 58... Bd3 {[%clk 0:00:03.3]} 59. Rh1 {[%clk 0:00:11.8]} 59...
Kg6 {[%clk 0:00:03.9]} 60. Kf4 {[%clk 0:00:11.5]} 60... Be2 {[%clk 0:00:03.9]}
61. Rh2 {[%clk 0:00:11.6]} 61... Bd1 {[%clk 0:00:03.9]} 62. Rg2+ {[%clk
0:00:12.3]} 62... Kf6 {[%clk 0:00:04.1]} 63. Rg1 {[%clk 0:00:13.2]} 63... Be2
{[%clk 0:00:04.1]} 64. Rh1 {[%clk 0:00:13.7]} 64... Kg6 {[%clk 0:00:03.6]} 65.
Ra1 {[%clk 0:00:14]} 65... h5 {[%clk 0:00:03.4]} 66. Rg1+ {[%clk 0:00:13.9]}
66... Kf6 {[%clk 0:00:03.5]} 67. Rg2 {[%clk 0:00:14.5]} 67... Bd1 {[%clk
0:00:03.6]} 68. Rd2 {[%clk 0:00:14.3]} 68... Bb3 {[%clk 0:00:03.2]} 69. Rh2
{[%clk 0:00:15]} 69... Kg6 {[%clk 0:00:03.5]} 70. Rg2+ {[%clk 0:00:15.8]} 70...
Kf6 {[%clk 0:00:04]} 71. Rg5 {[%clk 0:00:16.1]} 71... h4 {[%clk 0:00:03.5]} 72.
Rh5 {[%clk 0:00:16.7]} 72... e5+ {[%clk 0:00:02.8]} 73. Ke3 {[%clk 0:00:13.4]}
73... Bd1 {[%clk 0:00:01.8]} 74. Rxh4 {[%clk 0:00:13.7]} 74... Kg5 {[%clk
0:00:02.4]} 75. Rh1 {[%clk 0:00:13.7]} 1-0